bitfinex/quotes_BTCUSD_20230115
["timestamp","ask_amount","ask_price","bid_price","bid_amount"]
[1673788967603,1.6297355,20731.0,20730.0,0.01039542]
[1673788967863,1.9297355,20731.0,20730.0,0.01039542]
[1673788968649,2.36315544,20731.0,20730.0,0.01039542]
[1673788968953,1.9297355,20731.0,20730.0,0.01039542]
[1673788969466,1.6297355,20731.0,20730.0,0.01039542]
[1673788971218,1.92911678,20731.0,20730.0,0.01039542]
[1673788971488,1.6297355,20731.0,20730.0,0.01039542]
[1673788975428,1.99138572,20731.0,20730.0,0.01039542]
[1673788975618,1.6297355,20731.0,20730.0,0.01039542]
[1673788976387,1.6297355,20731.0,20730.0,0.00702779]
[1673788977609,1.99138557,20731.0,20730.0,0.01552779]
[1673788977870,1.92916357,20731.0,20730.0,0.01552779]
[1673788978122,1.44679457,20731.0,20730.0,0.01552779]
[1673788978388,0.79926814,20731.0,20730.0,0.01552779]
[1673788978645,1.16091821,20731.0,20730.0,0.01552779]
[1673788979419,0.53028163,20731.0,20730.0,0.01552779]
[1673788979680,0.31332635,20731.0,20730.0,0.01552779]
[1673788980183,1.22401927,20731.0,20730.0,0.01552779]
[1673788980954,0.87247092,20731.0,20730.0,0.01552779]
[1673788981207,0.93469292,20731.0,20730.0,0.01552779]
[1673788981466,1.22398164,20731.0,20730.0,0.01552779]
[1673788981726,1.86573876,20731.0,20730.0,0.01552779]
[1673788981978,2.15738181,20731.0,20730.0,0.00702779]
[1673788982242,0.01677672,20729.0,20727.0,0.00442223]
[1673788982517,1.1442635,20728.0,20727.0,0.00442223]
[1673788982772,1.77077211,20728.0,20727.0,0.01292223]
[1673788983283,2.25321111,20728.0,20727.0,0.01292223]
[1673788984049,2.25321111,20728.0,20727.0,0.01792223]
[1673788984379,2.25321111,20728.0,20727.0,0.01292223]
[1673788984612,1.65669998,20728.0,20727.0,0.01792223]
[1673788984869,0.39163298,20728.0,20727.0,0.38730987]
[1673788985901,0.17464259,20728.0,20727.0,0.38730987]
[1673788986424,0.03,20728.0,20727.0,0.38730987]
[1673788987458,0.03,20728.0,20727.0,1.01293254]
[1673788987719,0.03,20728.0,20727.0,2.29387723]
[1673788987989,0.03,20728.0,20727.0,1.97713924]
[1673788988312,0.03,20728.0,20727.0,2.12029991]
[1673788988501,0.03,20728.0,20727.0,3.52977021]
[1673788988749,0.03,20728.0,20727.0,2.77920532]
[1673788988970,0.03,20728.0,20727.0,3.57153967]
[1673788989211,0.03,20728.0,20727.0,4.01568928]
[1673788989731,0.03,20728.0,20727.0,3.57153045]
[1673788990227,0.03,20728.0,20727.0,2.3853083]
[1673788991001,0.03,20728.0,20727.0,2.17056174]
[1673788991497,0.03,20728.0,20727.0,2.3853083]
[1673788991742,0.03,20728.0,20727.0,2.17056174]
[1673788992023,0.03,20728.0,20727.0,2.3853083]
[1673788992532,0.03,20728.0,20727.0,2.17056174]
[1673788993059,0.03,20728.0,20727.0,1.20563774]
[1673788994094,0.03,20728.0,20727.0,1.4203843]
[1673788994348,0.03,20728.0,20727.0,1.20563774]
[1673788995132,0.03,20728.0,20727.0,1.06247707]
[1673788995386,0.03,20728.0,20727.0,1.20563774]
[1673788996195,0.03,20728.0,20727.0,1.06247707]
[1673788996454,0.03,20728.0,20727.0,0.74119607]
[1673789001004,0.03,20728.0,20727.0,0.52746352]
[1673789001254,0.27609468,20728.0,20727.0,0.52746352]
[1673789003802,0.42073727,20728.0,20727.0,0.52746352]
[1673789008305,0.27609468,20728.0,20727.0,0.52746352]
[1673789009064,0.42073727,20728.0,20727.0,0.52746352]
[1673789010320,0.03,20728.0,20727.0,0.52746352]
[1673789012566,0.37498341,20728.0,20727.0,0.05026183]
[1673789012813,0.85742241,20728.0,20727.0,0.05026183]
[1673789013074,0.77500182,20728.0,20727.0,0.05026183]
[1673789013334,0.91964441,20728.0,20727.0,0.05026183]
[1673789013622,0.6541958,20728.0,20727.0,0.05026183]
[1673789014359,0.43720541,20728.0,20727.0,0.05026183]
[1673789014617,0.37498341,20728.0,20727.0,0.05026183]
[1673789014936,0.6541958,20728.0,20727.0,0.05026183]
[1673789015675,0.79887709,20728.0,20727.0,0.05026183]
[1673789016284,0.50955321,20728.0,20727.0,0.05026183]
[1673789017027,0.65407405,20728.0,20727.0,0.04176183]
[1673789017544,0.37486166,20728.0,20727.0,0.04176183]
[1673789017784,0.65407405,20728.0,20727.0,0.04176183]
[1673789018768,0.43708366,20728.0,20727.0,0.04176183]
[1673789019012,0.59185205,20728.0,20727.0,0.04176183]
[1673789019256,0.37486166,20728.0,20727.0,0.04176183]
[1673789019495,0.43708366,20728.0,20727.0,0.04176183]
[1673789020230,0.65407405,20728.0,20727.0,0.04176183]
[1673789020942,0.43708366,20728.0,20727.0,0.04176183]
[1673789021502,0.65407405,20728.0,20727.0,0.05026183]
[1673789023551,0.43708366,20728.0,20727.0,0.05026183]
[1673789023802,0.37486166,20728.0,20727.0,0.05026183]
[1673789024050,0.43708366,20728.0,20727.0,0.05026183]
[1673789024298,0.37486166,20728.0,20727.0,0.05026183]
[1673789024551,0.43708366,20728.0,20727.0,0.05026183]
[1673789024803,0.65407405,20728.0,20727.0,0.05026183]
[1673789025597,0.50955321,20728.0,20727.0,0.05026183]
[1673789026969,0.43705735,20728.0,20727.0,0.05026183]
[1673789027443,0.65404774,20728.0,20727.0,0.05026183]
[1673789029047,0.79887709,20728.0,20727.0,0.05026183]
[1673789029292,1.28131609,20728.0,20727.0,0.05026183]
[1673789029551,1.28107709,20728.0,20727.0,0.05026183]
[1673789029807,1.3643257,20728.0,20727.0,0.05026183]
[1673789030612,1.2810875,20728.0,20727.0,0.05026183]
[1673789031136,1.28108961,20728.0,20727.0,0.05026183]
[1673789031406,1.28108538,20728.0,20727.0,0.05026183]
[1673789031710,1.13626605,20728.0,20727.0,0.05026183]
[1673789032746,0.9917615,20728.0,20727.0,0.05026183]
[1673789033569,1.28108538,20728.0,20727.0,0.05026183]
[1673789034529,1.0643257,20728.0,20727.0,0.05026183]
[1673789034537,1.28118057,20728.0,20727.0,0.05026183]
[1673789034777,1.90570364,20728.0,20727.0,0.05026183]
[1673789035024,1.28118267,20728.0,20727.0,0.05026183]
[1673789036277,1.54409407,20728.0,20727.0,0.05026183]
[1673789036782,1.0643257,20728.0,20727.0,0.05026183]
[1673789037307,1.90574875,20728.0,20727.0,0.05026183]
[1673789037836,1.0643257,20728.0,20727.0,0.05026183]
[1673789038121,1.28122267,20728.0,20727.0,0.05026183]
[1673789038378,1.544156,20728.0,20727.0,0.05026183]
[1673789038627,1.0643257,20728.0,20727.0,0.05026183]
[1673789039417,1.0643257,20728.0,20727.0,0.05000598]
[1673789039691,0.44726726,20728.0,20727.0,0.05000598]
[1673789039942,0.73659114,20728.0,20727.0,0.05000598]
[1673789040199,0.79881314,20728.0,20727.0,0.05000598]
[1673789040462,0.50948926,20728.0,20727.0,0.05000598]
[1673789041040,0.79881314,20728.0,20727.0,0.05000598]
[1673789044427,1.4233068,20728.0,20727.0,0.05000598]
[1673789044953,1.13398292,20728.0,20727.0,0.05000598]
[1673789046226,1.42327604,20728.0,20727.0,0.05000598]
[1673789046477,1.90571504,20728.0,20727.0,0.05000598]
[1673789046996,1.61642192,20728.0,20727.0,0.05000598]
[1673789049046,1.42327051,20728.0,20727.0,0.05000598]
[1673789049300,0.79881198,20728.0,20727.0,0.05000598]
[1673789050296,1.42251089,20728.0,20727.0,0.05000598]
[1673789050804,1.06085604,20728.0,20727.0,0.05000598]
[1673789051054,0.79882405,20728.0,20727.0,0.05000598]
[1673789052294,1.13339892,20728.0,20727.0,0.05000598]
[1673789055380,1.42275854,20728.0,20727.0,0.05000598]
[1673789055882,1.13339892,20728.0,20727.0,0.05000598]
[1673789059048,1.07117692,20728.0,20727.0,0.05000598]
[1673789059269,1.13339892,20728.0,20727.0,0.05000598]
[1673789060076,1.07117692,20728.0,20727.0,0.05000598]
[1673789060358,1.36054896,20728.0,20727.0,0.05000598]
[1673789060609,1.42277096,20728.0,20727.0,0.05000598]
[1673789060866,1.36054896,20728.0,20727.0,0.05000598]
[1673789061130,1.07117692,20728.0,20727.0,0.05000598]
[1673789061376,0.51971135,20728.0,20727.0,0.05000598]
[1673789062489,0.73673792,20728.0,20727.0,0.05000598]
[1673789063214,0.17467245,20728.0,20727.0,1.47185575]
[1673789063474,0.03,20728.0,20727.0,1.47185575]
[1673789063743,0.03,20728.0,20727.0,2.27559875]
[1673789064249,0.03,20728.0,20727.0,1.95431775]
[1673789064775,0.91634613,20732.0,20727.0,2.27559875]
[1673789065047,0.39655303,20731.0,20728.0,0.0085]
[1673789065287,0.39655303,20731.0,20728.0,0.490929]
[1673789065796,0.39655303,20731.0,20729.0,0.37010646]
[1673789066051,0.39655303,20731.0,20730.0,0.11178]
[1673789067085,0.02474414,20732.0,20730.0,0.11178]
[1673789067316,0.007,20731.0,20730.0,0.11178]
[1673789067851,0.42875563,20731.0,20730.0,0.0085]
[1673789068098,0.42175563,20731.0,20730.0,0.0085]
[1673789068347,0.42875563,20731.0,20730.0,0.0155]
[1673789068848,0.42866552,20731.0,20730.0,0.0155]
[1673789069614,0.03251448,20731.0,20730.0,0.0155]
[1673789073192,0.32154068,20731.0,20730.0,0.0155]
[1673789073444,0.03251448,20731.0,20730.0,0.0155]
[1673789073700,0.24924551,20731.0,20730.0,0.0155]
[1673789074802,0.39371289,20731.0,20730.0,0.0155]
[1673789076585,0.682845,20731.0,20730.0,0.0155]
[1673789076833,1.13978952,20731.0,20730.0,0.0155]
[1673789078070,1.07756752,20731.0,20730.0,0.0155]
[1673789078560,0.53824098,20731.0,20730.0,0.0155]
[1673789079075,0.60046298,20731.0,20730.0,0.0155]
[1673789079846,1.92214878,20731.0,20730.0,0.0155]
[1673789080071,1.27181826,20731.0,20730.0,0.0155]
[1673789080284,1.63299484,20731.0,20730.0,0.0155]
[1673789080548,1.60748036,20731.0,20730.0,0.0155]
[1673789080804,2.40802902,20731.0,20730.0,0.007]
[1673789082003,1.81907862,20731.0,20730.0,0.007]
[1673789082218,2.11907862,20731.0,20730.0,0.007]
[1673789082448,2.10802248,20731.0,20730.0,0.007]
[1673789082701,2.40802248,20731.0,20730.0,0.007]
[1673789082999,1.7468459,20731.0,20730.0,0.007]
[1673789083262,2.10802248,20731.0,20730.0,0.007]
[1673789083533,1.35213312,20731.0,20730.0,0.007]
[1673789083799,1.56884548,20731.0,20730.0,0.007]
[1673789084563,2.10901067,20731.0,20730.0,0.007]
[1673789085294,1.56885083,20731.0,20730.0,0.007]
[1673789085548,2.10902376,20731.0,20730.0,0.007]
[1673789085804,2.10880562,20731.0,20730.0,0.007]
[1673789089030,2.0906325,20731.0,20730.0,0.007]
[1673789089300,1.75848808,20731.0,20730.0,0.007]
[1673789090569,2.11978917,20731.0,20730.0,0.007]
[1673789091298,1.75299567,20731.0,20730.0,0.007]
[1673789091767,1.72945592,20731.0,20730.0,0.007]
[1673789092606,2.16343905,20731.0,20730.0,0.507]
[1673789092838,1.72945592,20731.0,20730.0,0.507]
[1673789094497,1.75685039,20731.0,20730.0,0.507]
[1673789094705,2.16343905,20731.0,20730.0,0.507]
[1673789095261,1.75435261,20731.0,20730.0,0.507]
[1673789095768,2.18833574,20731.0,20730.0,0.507]
[1673789096767,1.75435261,20731.0,20730.0,0.507]
[1673789098714,2.18833574,20731.0,20730.0,0.507]
[1673789099692,1.75435261,20731.0,20730.0,0.507]
[1673789099949,2.18833574,20731.0,20730.0,0.507]
[1673789100200,1.75435261,20731.0,20730.0,0.507]
[1673789100857,1.75435261,20731.0,20730.0,0.54592407]
[1673789101122,2.18833574,20731.0,20730.0,0.54592407]
[1673789103164,1.75435261,20731.0,20730.0,0.54592407]
[1673789104949,2.18833574,20731.0,20730.0,0.54592407]
[1673789107230,2.16343905,20731.0,20730.0,0.54592407]
[1673789107523,2.17027918,20731.0,20730.0,0.54592407]
[1673789109304,1.73629605,20731.0,20730.0,0.54592407]
[1673789109847,2.17027918,20731.0,20730.0,0.54592407]
[1673789110674,1.73629605,20731.0,20730.0,0.54592407]
[1673789110940,2.17027918,20731.0,20730.0,0.54592407]
[1673789111227,1.73629605,20731.0,20730.0,0.54592407]
[1673789111723,1.67407405,20731.0,20730.0,0.54592407]
[1673789112235,1.43629605,20731.0,20730.0,0.54592407]
[1673789112500,1.37407405,20731.0,20730.0,0.54592407]
[1673789112999,1.43629605,20731.0,20730.0,0.54592407]
[1673789113260,1.37407405,20731.0,20730.0,0.54592407]
[1673789114294,1.73553407,20731.0,20730.0,0.54592407]
[1673789114547,1.79775607,20731.0,20730.0,0.54592407]
[1673789114807,1.79780515,20731.0,20730.0,0.54592407]
[1673789115074,0.76400502,20731.0,20730.0,0.54592407]
[1673789115348,0.36847823,20731.0,20730.0,0.97160523]
[1673789116662,0.15159129,20731.0,20730.0,0.97160523]
[1673789117733,0.007,20731.0,20730.0,0.97160523]
[1673789118289,0.15159129,20731.0,20730.0,0.97160523]
[1673789119065,0.007,20731.0,20730.0,0.97160523]
[1673789123209,0.007,20731.0,20730.0,1.45399723]
[1673789126047,0.007,20731.0,20730.0,1.77527823]
[1673789126839,0.007,20731.0,20730.0,1.45399723]
[1673789131911,0.007,20731.0,20730.0,0.97160523]
[1673789133968,0.007,20731.0,20730.0,0.55442407]
[1673789134245,0.0139229,20731.0,20730.0,0.55442407]
[1673789134487,0.15851419,20731.0,20730.0,0.55442407]
[1673789134994,0.0139229,20731.0,20730.0,0.55442407]
[1673789138048,0.15851419,20731.0,20730.0,0.55442407]
[1673789138294,0.0139229,20731.0,20730.0,0.55442407]
[1673789138563,0.15851419,20731.0,20730.0,0.55442407]
[1673789138807,0.0139229,20731.0,20730.0,0.55442407]
[1673789139331,0.15851419,20731.0,20730.0,0.55442407]
[1673789141107,0.0139229,20731.0,20730.0,0.55442407]
[1673789141643,0.15851419,20731.0,20730.0,0.55442407]
[1673789143023,0.0139229,20731.0,20730.0,0.55442407]
[1673789144157,0.15851419,20731.0,20730.0,0.55442407]
[1673789144977,0.37540113,20731.0,20730.0,0.55442407]
[1673789145233,0.15851419,20731.0,20730.0,0.55442407]
[1673789145485,0.37540113,20731.0,20730.0,0.55442407]
[1673789145773,0.37540113,20731.0,20730.0,0.54592407]
[1673789145774,1.78474323,20731.0,20730.0,0.54592407]
[1673789146035,1.70533059,20731.0,20730.0,0.54592407]
[1673789146817,2.06655001,20731.0,20730.0,0.54592407]
[1673789147804,2.06789724,20731.0,20730.0,0.54592407]
[1673789148352,1.70667782,20731.0,20730.0,0.54592407]
[1673789148870,2.06790015,20731.0,20730.0,0.54592407]
[1673789149374,2.35687254,20731.0,20730.0,0.54592407]
[1673789149647,2.65529727,20731.0,20730.0,0.54592407]
[1673789149906,2.06790015,20731.0,20730.0,0.54592407]
[1673789150281,1.70667782,20731.0,20730.0,0.54592407]
[1673789150693,2.0678898,20731.0,20730.0,0.54592407]
[1673789151701,1.7678898,20731.0,20730.0,0.54592407]
[1673789151950,1.26896895,20731.0,20730.0,0.54592407]
[1673789152204,1.48568161,20731.0,20730.0,0.54592407]
[1673789152453,1.3411937,20731.0,20730.0,0.54592407]
[1673789155009,1.48568161,20731.0,20730.0,0.54592407]
[1673789155758,1.48571287,20731.0,20730.0,0.54592407]
[1673789156014,1.54793487,20731.0,20730.0,0.54592407]
[1673789156265,1.48571287,20731.0,20730.0,0.54592407]
[1673789158064,1.34124587,20731.0,20730.0,0.54592407]
[1673789159875,0.85887687,20731.0,20730.0,0.54592407]
[1673789160375,0.85060674,20731.0,20730.0,0.54592407]
[1673789160634,0.99507374,20731.0,20730.0,0.54592407]
[1673789160885,1.00270401,20731.0,20730.0,0.54592407]
[1673789161151,1.15009943,20731.0,20730.0,0.54592407]
[1673789161680,0.78596009,20731.0,20730.0,0.54592407]
[1673789162139,1.00272145,20731.0,20730.0,0.54592407]
[1673789162409,0.78596009,20731.0,20730.0,0.54592407]
[1673789162669,1.00272144,20731.0,20730.0,0.54592407]
[1673789162922,1.002713,20731.0,20730.0,0.54592407]
[1673789163188,0.71375509,20731.0,20730.0,0.54592407]
[1673789163449,1.00271591,20731.0,20730.0,0.54592407]
[1673789163708,0.85825451,20731.0,20730.0,0.54592407]
[1673789164039,1.00271591,20731.0,20730.0,0.54592407]
[1673789165650,0.71375509,20731.0,20730.0,0.54592407]
[1673789165901,1.00271591,20731.0,20730.0,0.54592407]
[1673789169827,0.78596009,20731.0,20730.0,0.54592407]
[1673789170325,1.22403069,20731.0,20730.0,0.54592407]
[1673789170587,1.28625269,20731.0,20730.0,0.54592407]
[1673789171049,1.22403069,20731.0,20730.0,0.54592407]
[1673789172112,1.51316769,20731.0,20730.0,0.54592407]
[1673789173167,0.51299345,20731.0,20730.0,0.54592407]
[1673789173483,0.15156766,20731.0,20730.0,0.99889337]
[1673789173685,0.007,20731.0,20730.0,0.99889337]
[1673789173948,0.15156766,20731.0,20730.0,1.32017437]
[1673789174234,0.007,20731.0,20730.0,1.32017437]
[1673789174993,0.00706,20731.0,20730.0,1.32017437]
[1673789175239,0.00706,20731.0,20730.0,0.99889337]
[1673789175767,0.00706,20731.0,20730.0,1.32017437]
[1673789177070,0.00706,20731.0,20730.0,0.99889337]
[1673789178104,0.00706,20731.0,20730.0,1.32017437]
[1673789180418,0.00706,20731.0,20730.0,0.99889337]
[1673789180716,0.00706,20731.0,20730.0,1.48128537]
[1673789180990,0.00706,20731.0,20730.0,1.80256637]
[1673789182307,0.00706,20731.0,20730.0,2.76216006]
[1673789182602,0.00706,20731.0,20730.0,2.31769076]
[1673789183633,6e-05,20731.0,20730.0,2.31069076]
[1673789183870,6e-05,20731.0,20730.0,2.39769076]
[1673789184134,6e-05,20731.0,20730.0,2.31069076]
[1673789184399,6e-05,20731.0,20730.0,2.77714447]
[1673789184920,6e-05,20731.0,20730.0,2.39769076]
[1673789185182,6e-05,20731.0,20730.0,2.82647023]
[1673789185441,6e-05,20731.0,20730.0,2.73947023]
[1673789185697,0.00106,20731.0,20730.0,2.39669076]
[1673789187568,0.00106,20731.0,20730.0,3.10163855]
[1673789187797,3.169e-05,20731.0,20730.0,3.68827502]
[1673789188055,3.169e-05,20731.0,20730.0,4.36652562]
[1673789188310,3.169e-05,20731.0,20730.0,4.71248664]
[1673789188564,3.169e-05,20731.0,20730.0,4.36652562]
[1673789189229,3.169e-05,20731.0,20730.0,4.00831066]
[1673789189429,0.01224546,20737.0,20730.0,3.92231066]
[1673789189681,0.01224546,20737.0,20733.0,0.14376913]
[1673789189932,0.01224546,20737.0,20734.0,2.24529469]
[1673789190210,0.01224546,20737.0,20735.0,0.62977269]
[1673789190492,0.01224546,20737.0,20736.0,1.294184]
[1673789191246,0.01224546,20737.0,20736.0,1.75105838]
[1673789191808,0.01224546,20737.0,20736.0,1.84405838]
[1673789194442,0.01224546,20737.0,20736.0,1.84416138]
[1673789194683,0.01224546,20737.0,20736.0,1.52288038]
[1673789194936,0.01224546,20737.0,20736.0,1.84416138]
[1673789195715,0.01224546,20737.0,20736.0,0.55837438]
[1673789195986,0.01224546,20737.0,20736.0,0.54987438]
[1673789204457,0.01224546,20737.0,20736.0,0.45687438]
[1673789204781,0.01224546,20737.0,20736.0,0.50387438]
[1673789212815,0.74207092,20737.0,20736.0,0.047]
[1673789213064,1.8514367,20737.0,20736.0,0.047]
[1673789213308,1.5622997,20737.0,20736.0,0.047]
[1673789213567,1.8514367,20737.0,20736.0,0.047]
[1673789214658,1.5622997,20737.0,20736.0,0.047]
[1673789215916,1.8514367,20737.0,20736.0,0.047]
[1673789218466,2.36331283,20737.0,20736.0,0.047]
[1673789218959,1.85108362,20737.0,20736.0,0.047]
[1673789219697,1.63458025,20737.0,20733.0,0.3854674]
[1673789220027,2.12629618,20737.0,20736.0,0.008]
[1673789220235,0.36094053,20736.0,20733.0,0.3854674]
[1673789220491,0.23732075,20737.0,20736.0,0.008]
[1673789220744,1.48895775,20737.0,20734.0,0.48825402]
[1673789221004,0.20659168,20736.0,20734.0,0.48825402]
[1673789221281,0.36092718,20736.0,20734.0,0.48825402]
[1673789221496,0.14636968,20736.0,20734.0,0.48825402]
[1673789222547,1.34418743,20737.0,20734.0,0.48825402]
[1673789222782,1.34618743,20737.0,20734.0,0.49625402]
[1673789223034,0.15089073,20736.0,20734.0,0.48825402]
[1673789223303,0.15289073,20736.0,20734.0,0.49525402]
[1673789223548,0.15089073,20736.0,20734.0,0.48825402]
[1673789223812,0.15089073,20736.0,20734.0,0.49625402]
[1673789224058,0.14436968,20736.0,20734.0,0.48825402]
[1673789224315,0.14636968,20736.0,20734.0,0.49625402]
[1673789224569,0.36292718,20736.0,20734.0,0.49625402]
[1673789225101,0.14436968,20735.0,20734.0,0.49625402]
[1673789225593,0.36292718,20736.0,20734.0,0.49625402]
[1673789225853,0.14436968,20735.0,20734.0,0.49625402]
[1673789226130,0.14436968,20735.0,20734.0,0.48825402]
[1673789226351,0.36092718,20736.0,20734.0,0.53625402]
[1673789227141,0.36092718,20736.0,20734.0,0.48825402]
[1673789227142,0.14436968,20735.0,20734.0,0.48825402]
[1673789227403,0.36292718,20736.0,20734.0,0.48825402]
[1673789228154,0.14636968,20736.0,20734.0,0.48825402]
[1673789228672,0.36292718,20736.0,20734.0,0.48825402]
[1673789228923,0.36092718,20736.0,20734.0,0.48825402]
[1673789229166,0.14436968,20736.0,20734.0,0.53625402]
[1673789229417,0.14436968,20736.0,20734.0,0.48825402]
[1673789229672,0.14636968,20736.0,20734.0,0.48825402]
[1673789230171,0.14636968,20736.0,20735.0,0.0444931]
[1673789230689,0.36292718,20736.0,20735.0,0.0444931]
[1673789232258,0.36092718,20736.0,20735.0,0.0444931]
[1673789232535,0.36292718,20736.0,20735.0,0.0504931]
[1673789232826,0.002,20736.0,20735.0,0.4346776]
[1673789233084,0.002,20736.0,20735.0,0.0504931]
[1673789233340,0.002,20736.0,20735.0,1.30725539]
[1673789233599,0.01224546,20737.0,20735.0,1.30125539]
[1673789233892,0.01224546,20737.0,20736.0,0.152476]
[1673789234191,0.01224546,20737.0,20736.0,0.62967769]
[1673789234473,0.01224546,20737.0,20736.0,1.96516513]
[1673789234733,0.01224546,20737.0,20736.0,2.06516513]
[1673789234995,0.01224546,20737.0,20736.0,3.47343166]
[1673789235713,0.01217893,20737.0,20736.0,2.88589341]
[1673789235714,0.01217893,20737.0,20736.0,2.92964452]
[1673789235974,0.01217893,20737.0,20736.0,2.87588764]
[1673789236233,0.01217893,20737.0,20736.0,1.74645477]
[1673789236499,0.01217893,20737.0,20736.0,2.30212004]
[1673789236768,0.01217893,20737.0,20736.0,2.05210074]
[1673789237019,0.01217893,20737.0,20736.0,2.39210948]
[1673789237286,0.01217893,20737.0,20736.0,2.24834747]
[1673789237548,0.01217893,20737.0,20736.0,3.60279315]
[1673789238107,0.01217893,20737.0,20736.0,2.63834747]
[1673789238370,0.01739807,20740.0,20737.0,0.11217]
[1673789238634,0.01739807,20740.0,20739.0,0.62083368]
[1673789238912,9.807e-05,20740.0,20739.0,2.03764668]
[1673789239172,0.01780936,20741.0,20740.0,0.1]
[1673789239449,0.01780936,20741.0,20740.0,1.87122069]
[1673789240785,0.01780936,20741.0,20740.0,1.96222069]
[1673789241051,0.01780936,20741.0,20740.0,2.2520537]
[1673789241848,0.01780936,20741.0,20740.0,2.3040183]
[1673789242107,0.01780936,20741.0,20740.0,2.2561759]
[1673789242372,0.01780936,20741.0,20740.0,1.86122069]
[1673789242636,0.01780936,20741.0,20740.0,1.77122069]
[1673789242902,0.01780936,20741.0,20740.0,1.86222069]
[1673789243667,0.01780936,20741.0,20740.0,1.77122069]
[1673789243669,0.01780936,20741.0,20740.0,1.86122069]
[1673789244185,0.01780936,20741.0,20740.0,1.95222069]
[1673789244953,0.01780936,20741.0,20740.0,1.77122069]
[1673789245208,0.01780936,20741.0,20740.0,1.86122069]
[1673789245718,0.01769998,20741.0,20740.0,1.95222069]
[1673789245972,0.01769998,20741.0,20740.0,1.77122069]
[1673789246226,0.01769998,20741.0,20740.0,1.86122069]
[1673789246738,0.01769998,20741.0,20740.0,2.23211359]
[1673789247004,0.01769998,20741.0,20740.0,2.13261359]
[1673789248067,0.01769998,20741.0,20740.0,2.22261359]
[1673789248324,0.01769998,20741.0,20740.0,2.14111359]
[1673789248609,0.01769998,20741.0,20740.0,2.23211359]
[1673789248869,0.01769998,20741.0,20740.0,2.14111359]
[1673789249669,0.01769998,20741.0,20740.0,2.23289892]
[1673789249925,0.01769998,20741.0,20740.0,2.23189892]
[1673789250184,0.01769998,20741.0,20740.0,1.86200602]
[1673789250944,0.01769998,20741.0,20740.0,2.22660608]
[1673789251242,0.01769998,20741.0,20740.0,2.13660608]
[1673789251448,0.01769998,20741.0,20740.0,2.22760608]
[1673789251699,0.01769998,20741.0,20740.0,2.13660608]
[1673789251963,0.01769998,20741.0,20740.0,2.22660608]
[1673789252196,0.01769998,20741.0,20740.0,2.13660608]
[1673789252440,0.01769998,20741.0,20740.0,2.22760608]
[1673789252690,0.01769998,20741.0,20740.0,1.77200602]
[1673789252949,0.01769998,20741.0,20740.0,2.216166]
[1673789253230,0.01769998,20741.0,20740.0,2.125166]
[1673789253783,0.01769998,20741.0,20740.0,1.63372067]
[1673789253974,0.01769998,20741.0,20740.0,0.83036167]
[1673789254236,0.01769998,20741.0,20740.0,0.92136167]
[1673789254477,0.01769998,20741.0,20740.0,0.83036167]
[1673789254750,0.01769998,20741.0,20740.0,0.92136167]
[1673789255011,0.01769998,20741.0,20740.0,0.83036167]
[1673789255255,0.01769998,20741.0,20740.0,0.92136167]
[1673789256329,0.01769998,20741.0,20740.0,1.40352167]
[1673789257381,0.01769998,20741.0,20740.0,2.20696267]
[1673789257877,0.01769998,20741.0,20740.0,2.21546267]
[1673789258126,0.01769998,20741.0,20740.0,1.86230269]
[1673789261721,0.01769998,20741.0,20740.0,2.31223901]
[1673789264123,0.01769998,20741.0,20740.0,1.86230269]
[1673789265472,0.01769998,20741.0,20740.0,2.16230269]
[1673789265758,0.00124089,20741.0,20740.0,2.30593468]
[1673789266004,0.00124089,20741.0,20740.0,2.52138266]
[1673789266268,0.00124089,20741.0,20740.0,2.21493468]
[1673789266533,0.00124089,20741.0,20740.0,2.79719256]
[1673789267038,0.00124089,20741.0,20740.0,2.48974458]
[1673789267301,0.01705043,20743.0,20741.0,0.1912797]
[1673789267569,0.0154383,20745.0,20742.0,2.98113665]
[1673789267815,0.0154383,20745.0,20744.0,0.47720169]
[1673789268079,0.0104383,20745.0,20744.0,0.92952269]
[1673789268338,0.0104383,20745.0,20744.0,2.96629069]
[1673789268592,0.0104383,20745.0,20744.0,5.15168465]
[1673789268877,0.0104383,20745.0,20744.0,5.06257428]
[1673789269106,8.3e-06,20745.0,20744.0,3.59914783]
[1673789269392,0.19073425,20745.0,20744.0,3.58212527]
[1673789269630,0.19073425,20745.0,20744.0,1.10658969]
[1673789269884,8.3e-06,20745.0,20744.0,0.56420169]
[1673789270135,8.3e-06,20745.0,20744.0,0.47220169]
[1673789270381,8.3e-06,20745.0,20744.0,0.56420169]
[1673789270643,8.3e-06,20745.0,20744.0,0.47220169]
[1673789270892,8.3e-06,20745.0,20744.0,1.77062011]
[1673789271138,8.3e-06,20745.0,20744.0,1.86262011]
[1673789271401,8.3e-06,20745.0,20744.0,2.34468711]
[1673789272151,8.3e-06,20745.0,20744.0,2.25268711]
[1673789272402,8.3e-06,20745.0,20744.0,2.34468711]
[1673789272670,8.3e-06,20745.0,20744.0,2.25268711]
[1673789273206,8.3e-06,20745.0,20744.0,2.34568711]
[1673789273422,8.3e-06,20745.0,20744.0,2.35318711]
[1673789281492,8.3e-06,20745.0,20744.0,2.26097911]
[1673789281755,8.3e-06,20745.0,20744.0,2.35297911]
[1673789283116,8.3e-06,20745.0,20744.0,2.26097911]
[1673789283385,8.3e-06,20745.0,20744.0,2.35397911]
[1673789283646,8.3e-06,20745.0,20744.0,2.26097911]
[1673789284446,8.3e-06,20745.0,20744.0,2.35297911]
[1673789284718,8.3e-06,20745.0,20744.0,2.26097911]
[1673789284984,8.3e-06,20745.0,20744.0,2.35297911]
[1673789285249,8.3e-06,20745.0,20744.0,2.26097911]
[1673789286583,8.3e-06,20745.0,20744.0,2.35297911]
[1673789286842,8.3e-06,20745.0,20744.0,2.26097911]
[1673789287112,8.3e-06,20745.0,20744.0,2.35397911]
[1673789288139,8.3e-06,20745.0,20744.0,2.26097911]
[1673789288414,0.01087578,20749.0,20744.0,2.26097911]
[1673789288669,0.01087578,20749.0,20745.0,1.05626721]
[1673789288916,0.01087578,20749.0,20746.0,1.44123169]
[1673789289170,0.01087578,20749.0,20747.0,0.47720169]
[1673789289431,0.01087578,20749.0,20748.0,0.481974]
[1673789289693,0.01087578,20749.0,20748.0,0.89497594]
[1673789291490,0.01087578,20749.0,20748.0,0.90197594]
[1673789291724,0.01087578,20749.0,20748.0,0.89497594]
[1673789291980,0.01087578,20749.0,20748.0,0.42100194]
[1673789295065,0.01087578,20749.0,20748.0,0.42121194]
[1673789297105,0.01087578,20749.0,20748.0,1.86236163]
[1673789297626,0.01087578,20749.0,20748.0,2.18364263]
[1673789297958,0.01087578,20749.0,20748.0,1.86236163]
[1673789298166,0.01087578,20749.0,20748.0,1.86286163]
[1673789298922,0.01087578,20749.0,20748.0,1.95586163]
[1673789299222,0.01087578,20749.0,20748.0,1.86286163]
[1673789299438,0.01087578,20749.0,20748.0,1.95586163]
[1673789299691,0.01087578,20749.0,20748.0,2.27714263]